bitfinex/quotes_ETHUSD_20250726
["timestamp","ask_amount","ask_price","bid_price","bid_amount"]
[1753567169434,4.28,3762.1,3762.0,0.001]
[1753567170746,4.276,3762.1,3762.0,0.001]
[1753567171480,6.383,3762.2,3762.0,0.001]
[1753567171843,4.273,3762.1,3762.0,0.001]
[1753567172034,6.383,3762.2,3762.0,0.001]
[1753567172239,6.383,3762.2,3762.1,2.65808989]
[1753567172440,10.657,3762.2,3762.1,2.79088989]
[1753567172670,10.657,3762.2,3762.1,3.73528989]
[1753567173191,6.383,3762.2,3762.1,3.73528989]
[1753567173382,2.65738991,3763.1,3762.4,2.65786667]
[1753567173601,6.384,3763.0,3762.5,1.2717]
[1753567173883,6.384,3763.6,3763.0,2.79023935]
[1753567174083,4.272,3763.5,3763.0,2.65743935]
[1753567174282,4.272,3763.5,3763.1,1.0772]
[1753567174493,6.384,3763.6,3763.1,1.0772]
[1753567174692,4.27,3763.5,3763.1,2.65736608]
[1753567174882,4.27,3763.5,3763.2,0.9444]
[1753567175084,4.269,3763.4,3763.2,0.9444]
[1753567175286,6.384,3763.6,3763.4,0.1328]
[1753567175599,6.384,3763.6,3763.5,2.6571011]
[1753567175770,6.384,3763.6,3763.5,0.1328]
[1753567176289,7.6668,3764.9,3763.5,2.50046653]
[1753567176489,0.4868,3764.9,3764.3,2.65647345]
[1753567176801,4.27,3764.8,3764.5,0.1328]
[1753567177196,4.268,3764.7,3764.5,0.1328]
[1753567178214,2.65655261,3764.3,3763.1,0.7841]
[1753567178402,4.3998,3764.2,3763.7,0.1328]
[1753567178604,2.65677327,3764.0,3763.7,0.1328]
[1753567178902,2.65697408,3763.7,3763.4,0.1328]
[1753567179100,4.265,3763.6,3763.4,0.1328]
[1753567179286,4.7518,3763.6,3763.4,0.1328]
[1753567179800,0.4868,3763.5,3763.4,0.1328]
[1753567180799,3.1439011,3763.5,3763.4,0.1328]
[1753567180999,3.7464011,3763.5,3762.9,0.1328]
[1753567181186,7.40499534,3763.4,3763.0,100.0]
[1753567181501,2.79018354,3763.1,3763.0,100.0]
[1753567181674,7.29742824,3763.1,3763.0,100.0]
[1753567181879,8.09452824,3763.1,3763.0,100.0]
[1753567182608,8.09352824,3763.1,3763.0,100.0]
[1753567182810,6.382,3763.3,3763.0,100.0]
[1753567183009,6.382,3763.3,3763.0,100.1328]
[1753567183010,4.257,3763.1,3763.0,100.1328]
[1753567183702,4.257,3763.1,3763.0,101.0408]
[1753567184712,4.259,3763.1,3763.0,100.0]
[1753567185113,6.91638354,3763.1,3763.0,100.0]
[1753567186712,7.6154106,3763.1,3763.0,100.0]
[1753567186911,7.36748354,3763.1,3763.0,100.0]
[1753567187213,7.61547681,3763.1,3763.0,100.0]
[1753567189187,7.61555774,3763.1,3763.0,100.0]
[1753567189387,7.36748354,3763.1,3763.0,100.0]
[1753567189696,7.36948354,3763.1,3763.0,100.0]
[1753567191319,6.91838354,3763.1,3763.0,100.0]
[1753567195224,4.238,3763.1,3762.8,0.6066]
[1753567195406,4.238,3763.1,3762.8,0.1328]
[1753567196216,4.238,3763.1,3762.9,0.908]
[1753567197192,6.383,3763.2,3762.9,0.4342]
[1753567197193,4.236,3763.0,3762.9,0.4342]
[1753567197506,4.236,3763.0,3762.8,0.1328]
[1753567198030,4.236,3763.0,3762.9,3.56552478]
[1753567198190,4.233,3763.0,3762.9,0.908]
[1753567198922,4.231,3763.0,3762.9,0.908]
[1753567199523,4.23,3763.0,3762.9,0.908]
[1753567201327,4.23,3763.0,3762.8,2.79038145]
[1753567201528,6.383,3763.2,3762.8,2.79038145]
[1753567201529,6.383,3763.2,3763.1,2.65738354]
[1753567201832,10.612,3763.2,3763.1,4.37898354]
[1753567202128,6.383,3763.2,3763.1,4.51178354]
[1753567202330,10.612,3763.2,3763.1,4.51178354]
[1753567202496,10.612,3763.2,3763.1,5.22871375]
[1753567203106,6.383,3763.2,3763.1,5.22871375]
[1753567203305,10.609,3763.2,3763.1,4.51178354]
[1753567204511,6.383,3763.2,3763.1,4.51178354]
[1753567204716,10.607,3763.2,3763.1,4.51178354]
[1753567205348,6.383,3763.2,3763.1,4.51178354]
[1753567205556,10.605,3763.2,3763.1,4.51178354]
[1753567206146,6.383,3763.2,3763.1,4.51178354]
[1753567206353,6.383,3763.2,3763.1,5.22871375]
[1753567206651,10.603,3763.2,3763.1,5.22871375]
[1753567207645,6.383,3763.2,3763.1,5.22871375]
[1753567207952,10.601,3763.2,3763.1,5.22871375]
[1753567208550,0.9469,3764.1,3763.6,2.65700244]
[1753567208551,3.9469,3764.1,3763.6,2.65700244]
[1753567208855,3.0,3763.9,3763.6,3.56500244]
[1753567209146,1.08342,3764.1,3763.7,2.65695937]
[1753567209346,3.0,3763.9,3763.7,2.65695937]
[1753567209654,4.215,3763.8,3763.7,2.65695937]
[1753567209853,4.215,3763.8,3763.6,3.69781228]
[1753567210356,4.213,3763.7,3763.6,3.69781228]
[1753567210529,4.213,3763.7,3763.6,3.26361228]
[1753567210733,4.08342,3764.1,3763.7,2.65695424]
[1753567210960,4.212,3764.0,3763.7,2.65695424]
[1753567211255,4.212,3763.9,3763.7,3.56495424]
[1753567211455,1.08342,3764.1,3763.7,3.56495424]
[1753567211655,3.0,3763.9,3763.7,3.56495424]
[1753567211830,1.08342,3764.1,3763.7,3.56495424]
[1753567212227,3.0,3763.9,3763.7,3.56495424]
[1753567212427,4.21,3763.8,3763.7,3.56495424]
[1753567213356,4.209,3763.8,3763.7,3.56490374]
[1753567213854,4.209,3763.8,3763.7,0.908]
[1753567217562,4.209,3763.8,3763.6,2.78980649]
[1753567217860,4.209,3763.8,3763.7,2.6569599]
[1753567218060,4.209,3763.8,3763.7,3.5988599]
[1753567218632,4.209,3763.8,3763.7,3.1307599]
[1753567218831,3.0,3764.2,3763.7,0.9419]
[1753567219172,6.382,3764.3,3764.2,2.65660698]
[1753567219331,10.58,3764.3,3764.2,2.65660698]
[1753567219543,10.58,3764.3,3764.2,3.59850698]
[1753567220735,10.578,3764.3,3764.2,3.59850698]
[1753567221344,6.382,3764.3,3764.2,3.59850698]
[1753567221547,10.58,3764.3,3764.2,3.59850698]
[1753567221937,6.382,3764.3,3764.2,3.59850698]
[1753567222568,10.579,3764.3,3764.2,4.31994973]
[1753567223269,10.577,3764.3,3764.2,4.31994973]
[1753567224645,6.382,3764.3,3764.2,4.31994973]
[1753567224975,10.576,3764.3,3764.2,4.31994973]
[1753567225667,6.382,3764.3,3764.2,4.31994973]
[1753567225866,10.574,3764.3,3764.2,5.09614973]
[1753567226072,0.002,3764.7,3764.6,2.6563247]
[1753567226260,1e-08,3764.8,3764.7,3.98245415]
[1753567226467,1e-08,3764.8,3764.7,5.05715415]
[1753567226775,6.381,3766.0,3765.7,2.65554876]
[1753567226963,4.194,3765.8,3765.7,2.65554876]
[1753567227166,4.194,3765.8,3765.7,3.73024876]
[1753567228468,4.191,3765.8,3765.7,3.73024876]
[1753567229464,4.191,3765.8,3765.7,2.78834876]
[1753567229673,4.191,3765.8,3765.7,0.1328]
[1753567229860,4.6093,3765.8,3765.7,0.1328]
[1753567230376,4.846,3765.8,3765.6,0.1328]
[1753567230573,4.4277,3765.8,3765.6,0.1328]
[1753567230776,0.4183,3765.7,3765.6,0.1328]
[1753567231862,4.191,3765.8,3765.6,0.1328]
[1753567232376,4.183,3765.7,3765.6,0.1328]
[1753567234763,4.185,3765.7,3765.6,0.1328]
[1753567237291,4.175,3765.7,3765.6,0.1328]
[1753567237655,4.5933,3765.7,3765.6,0.1328]
[1753567238694,4.175,3765.7,3765.6,0.1328]
[1753567239785,4.175,3765.7,3765.6,0.6066]
[1753567239960,4.175,3765.7,3765.6,1.0747]
[1753567240161,0.002,3765.7,3765.6,1.0747]
[1753567240364,4.174,3765.7,3765.6,4.92025648]
[1753567241305,4.172,3765.7,3765.6,4.92025648]
[1753567242696,4.172,3765.7,3765.6,4.54721929]
[1753567243012,4.172,3765.7,3765.6,2.78841929]
[1753567243383,4.172,3765.7,3765.6,3.75951929]
[1753567244504,0.002,3765.7,3765.6,3.75951929]
[1753567244674,4.168,3765.7,3765.6,3.75951929]
[1753567245280,4.168,3765.7,3765.6,3.28501929]
[1753567245475,4.168,3765.7,3765.6,0.1328]
[1753567245986,4.5863,3765.7,3765.6,0.1328]
[1753567246183,4.168,3765.7,3765.6,0.1328]
[1753567246381,2.65562186,3765.6,3764.8,0.8299]
[1753567246585,4.5813,3765.5,3765.2,0.1328]
[1753567246912,7.63028043,3765.4,3764.7,2.65623948]
[1753567247086,7.63028043,3765.4,3765.0,0.1328]
[1753567247286,3.31086747,3765.3,3765.0,0.1328]
[1753567247486,3.0,3765.1,3764.3,2.65648573]
[1753567247687,3.46861796,3764.9,3764.6,0.1328]
[1753567247891,3.46861796,3764.9,3764.2,2.65659058]
[1753567247892,4.163,3764.8,3764.5,0.1328]
[1753567248092,4.5813,3764.8,3764.5,0.1328]
[1753567248290,0.4183,3764.7,3764.5,0.1328]
[1753567248599,4.5803,3764.6,3764.5,0.1328]
[1753567248910,4.5803,3764.6,3764.4,0.1328]
[1753567250320,1.2308,3764.9,3764.4,0.1328]
[1753567250610,4.161,3764.8,3764.4,0.1328]
[1753567250809,3.0,3765.5,3764.6,2.6563247]
[1753567250810,4.159,3764.7,3764.6,2.6563247]
[1753567250995,0.2387,3765.7,3765.2,0.1328]
[1753567250996,0.7651,3765.7,3765.2,0.1328]
[1753567251170,0.7651,3765.7,3765.3,2.65578137]
[1753567251373,4.16,3765.6,3765.4,3.75960823]
[1753567251570,0.7651,3765.7,3765.4,3.75960823]
[1753567251774,4.161,3765.6,3765.4,3.75960823]
[1753567251971,4.161,3765.6,3765.4,1.1039]
[1753567252207,0.002,3765.7,3765.5,0.9711]
[1753567252406,4.16,3765.6,3765.5,0.9711]
[1753567252579,4.16,3765.6,3765.5,3.62677014]
[1753567252791,4.16,3765.6,3765.5,0.9711]
[1753567253176,4.159,3765.6,3765.4,0.1328]
[1753567253629,4.159,3765.6,3765.4,1.1039]
[1753567253923,4.159,3765.6,3765.5,0.9711]
[1753567254806,4.159,3765.6,3765.5,3.62678981]
[1753567255209,0.002,3765.7,3765.5,3.62678981]
[1753567255413,4.156,3765.6,3765.5,3.62678981]
[1753567255591,0.002,3765.7,3765.5,3.62678981]
[1753567255790,4.156,3765.6,3765.5,0.9711]
[1753567256912,4.156,3765.6,3765.4,0.1328]
[1753567257239,0.002,3765.7,3765.4,0.1328]
[1753567257408,4.155,3765.5,3765.4,0.1328]
[1753567257616,4.155,3765.5,3765.4,1.1039]
[1753567258234,4.155,3765.5,3765.4,3.75966034]
[1753567258732,4.155,3765.5,3765.4,1.1039]
[1753567259100,4.155,3765.5,3765.4,3.75966034]
[1753567259526,4.105,3765.5,3765.4,3.75966034]
[1753567260536,4.105,3765.5,3765.4,0.6294]
[1753567260740,4.105,3765.5,3765.4,0.1328]
[1753567261435,5.3149,3765.5,3765.4,0.1328]
[1753567261636,6.03337852,3765.5,3764.8,0.001]
[1753567261837,2.65591579,3765.2,3764.8,0.1338]
[1753567262154,4.148,3765.1,3764.8,0.001]
[1753567262342,0.7916,3765.0,3764.8,0.001]
[1753567262541,0.3224591,3764.9,3764.8,0.001]
[1753567262706,0.9774591,3764.9,3764.8,0.001]
[1753567262902,0.7407591,3764.9,3764.8,0.001]
[1753567263103,10.78057214,3764.9,3764.8,0.001]
[1753567263448,11.57217214,3764.9,3764.8,0.001]
[1753567264150,11.52217214,3764.9,3764.8,0.001]
[1753567266553,4.86447852,3764.9,3764.8,0.001]
[1753567266750,4.2788,3764.9,3764.8,0.001]
[1753567267918,6.93491304,3764.9,3764.8,0.001]
[1753567268526,9.93491304,3764.9,3764.8,0.001]
[1753567269628,10.75551304,3764.9,3764.8,0.001]
[1753567275166,6.60951304,3764.9,3764.8,0.001]
[1753567275366,10.74551304,3764.9,3764.8,0.001]
[1753567278174,6.60951304,3764.9,3764.8,0.001]
[1753567278357,10.74151304,3764.9,3764.8,0.001]
[1753567280185,6.60951304,3764.9,3764.8,0.001]
[1753567280389,8.0814,3764.9,3764.8,0.4866]
[1753567280689,10.73751304,3764.9,3764.8,0.9246]
[1753567280850,6.60951304,3764.9,3764.8,0.9246]
[1753567281054,10.73751304,3764.9,3764.8,0.9246]
[1753567282591,9.91691304,3764.9,3764.8,0.9246]
[1753567282888,3.153,3764.9,3764.8,3.71357811]
[1753567283188,3.153,3764.9,3764.8,4.16233592]
[1753567283580,0.1328,3765.5,3765.0,2.65602021]
[1753567283763,4.127,3765.4,3765.2,2.65584558]
[1753567283963,4.127,3765.4,3765.0,2.65602021]
[1753567283964,4.127,3765.4,3765.3,0.9236]
[1753567284795,4.127,3765.4,3765.3,0.4856]
[1753567284979,4.55298,3765.4,3764.8,0.001]
[1753567285180,2.65609413,3765.0,3764.8,0.001]
[1753567285486,6.78211304,3764.9,3764.8,0.001]
[1753567285688,4.126,3764.9,3764.8,0.001]
[1753567285989,4.126,3764.9,3764.8,0.439]
[1753567286497,4.126,3764.9,3764.8,0.9246]
[1753567288207,4.126,3764.9,3764.8,0.001]
[1753567288379,7.20741156,3764.9,3764.8,0.001]
[1753567290502,8.14061156,3764.9,3764.8,0.001]
[1753567291621,7.70101156,3764.9,3764.8,0.001]
[1753567291822,7.20741156,3764.9,3764.8,0.001]
[1753567293001,10.97761156,3764.9,3764.8,0.001]
[1753567293327,11.91081156,3764.9,3764.8,0.001]
[1753567293621,41.91081156,3764.9,3764.8,0.001]
[1753567294425,42.15963182,3764.9,3764.8,0.001]
[1753567295123,41.72003182,3764.9,3764.8,0.001]
[1753567295524,11.72003182,3764.9,3764.8,0.001]
[1753567295708,11.22643182,3764.9,3764.8,0.001]
[1753567296020,41.22643182,3764.9,3764.8,0.001]
[1753567296220,11.22643182,3764.9,3764.8,0.001]
[1753567296386,10.97761156,3764.9,3764.8,0.001]
[1753567297089,11.22643005,3764.9,3764.8,0.001]
[1753567297425,10.97761156,3764.9,3764.8,0.001]
[1753567297890,11.72003122,3764.9,3764.8,0.001]
[1753567298087,11.22643122,3764.9,3764.8,0.001]
[1753567298730,41.22643122,3764.9,3764.8,0.001]
[1753567299899,40.97761156,3764.9,3764.8,0.001]
[1753567300296,41.22643752,3764.9,3764.8,0.001]
[1753567301063,41.22642597,3764.9,3764.8,0.001]
[1753567301406,11.22642597,3764.9,3764.8,0.001]
[1753567301962,11.2264214,3764.9,3764.8,0.001]
[1753567304116,41.2264214,3764.9,3764.8,0.001]
[1753567305216,11.2264214,3764.9,3764.8,0.001]
[1753567308446,41.2264214,3764.9,3764.8,0.001]
[1753567309332,11.22645824,3764.9,3764.8,0.001]
[1753567310646,2.65724231,3763.3,3763.2,0.001]
[1753567310947,2.6575954,3762.8,3762.7,0.4706]
[1753567311253,6.7665954,3762.8,3762.7,0.9443]
[1753567311643,2.6578073,3762.5,3762.4,0.4737]
[1753567311847,6.7668073,3762.5,3762.3,0.8075]
[1753567312154,6.7668073,3762.5,3762.4,0.4706]
[1753567312547,4.109,3762.5,3762.4,0.9443]
[1753567313464,6.7668073,3762.5,3762.4,0.9443]
[1753567313818,4.109,3762.5,3762.4,0.9443]
[1753567315828,4.109,3762.5,3762.4,0.4706]
[1753567316028,4.109,3762.5,3762.4,0.9443]
[1753567316247,6.76681968,3762.5,3762.4,0.9443]
[1753567316450,4.109,3762.5,3762.4,0.9443]
[1753567316836,6.7668073,3762.5,3762.4,0.9443]
[1753567318521,4.109,3762.5,3762.4,0.9443]
[1753567318722,3.0,3763.0,3762.4,0.9443]
[1753567318955,2.65773886,3762.6,3762.5,0.4706]
[1753567319252,4.105,3762.6,3762.5,0.9443]
[1753567319862,2.65744497,3763.1,3762.5,0.9443]
[1753567320152,9.03924231,3763.3,3762.5,0.9443]
[1753567320153,4.105,3763.0,3762.9,0.8206]
[1753567320459,6.382,3763.3,3763.0,0.9443]
[1753567320751,4.2378,3763.2,3763.1,0.9443]
[1753567320951,4.2378,3763.2,3762.9,0.8206]
[1753567321530,4.2378,3763.2,3763.0,0.9443]
[1753567321736,0.1328,3763.2,3763.1,0.9443]
[1753567321936,4.2378,3763.2,3763.1,0.9443]
[1753567322354,0.1328,3763.2,3763.1,0.9443]
[1753567322559,4.2378,3763.2,3763.1,0.9443]
[1753567323156,2.65739272,3763.1,3762.9,0.4706]
[1753567323358,4.105,3763.0,3762.4,0.4716]
[1753567323574,3.96482366,3762.9,3762.4,0.001]
[1753567323728,5.7906073,3762.5,3762.4,0.001]
[1753567324060,10.4456073,3762.5,3762.4,0.001]
[1753567324226,3.20801924,3762.2,3762.1,0.001]
[1753567324426,14.2778429,3762.2,3762.1,0.001]
[1753567324731,15.1664429,3762.2,3762.1,0.001]
[1753567326781,12.13971924,3762.2,3762.1,0.001]
[1753567327087,42.33899758,3762.2,3762.1,0.001]
[1753567327482,42.58707726,3762.2,3762.1,0.001]
[1753567327688,42.38779892,3762.2,3762.1,0.001]
[1753567328603,12.38779892,3762.2,3762.1,1e-08]
[1753567328796,30.0,3761.9,3761.6,0.001]
[1753567328950,37.01367254,3761.7,3761.6,0.001]
[1753567329150,37.39455222,3761.7,3761.6,0.001]
[1753567329571,38.28315222,3761.7,3761.6,0.001]
[1753567330284,38.03507254,3761.7,3761.6,0.001]
[1753567330773,38.03507254,3761.7,3761.6,1e-08]
[1753567330974,38.28244868,3761.7,3761.6,1e-08]
[1753567332086,0.55,3760.9,3760.5,0.001]
[1753567332285,5.65915013,3760.6,3760.5,0.001]
[1753567332484,9.89795013,3760.6,3760.5,0.001]
[1753567333073,10.44795013,3760.6,3760.5,0.001]
[1753567333299,40.92465013,3760.6,3760.5,0.001]
[1753567333479,41.37665013,3760.6,3760.5,0.001]
[1753567333673,40.44795013,3760.6,3760.5,0.001]
[1753567333887,37.01052084,3760.5,3760.4,1e-08]
[1753567334217,2.65999893,3759.4,3759.3,0.001]
[1753567334419,9.76699893,3759.4,3759.3,0.001]
[1753567334566,9.89979893,3759.4,3759.3,0.001]
[1753567335266,0.1328,3759.4,3759.3,0.8823]
[1753567335471,4.108,3759.4,3759.3,1.6928]
[1753567335665,0.1328,3759.6,3759.3,1.6928]
[1753567335888,0.1328,3759.8,3759.7,2.65976307]
[1753567336109,4.2418,3759.8,3759.7,2.65976307]
[1753567336285,4.2418,3759.8,3759.7,3.54106307]
[1753567337708,0.1328,3759.8,3759.7,4.35506307]
[1753567338020,0.1328,3760.4,3760.3,2.65936228]
[1753567338166,0.1328,3760.8,3760.5,2.65921884]
[1753567338365,4.11,3760.7,3760.5,2.65921884]
[1753567338619,0.1328,3760.8,3760.6,0.8813]
[1753567338801,4.111,3760.7,3760.6,0.8813]
[1753567339793,0.1328,3760.8,3760.6,0.8813]
[1753567340001,0.1328,3760.8,3760.4,0.814]
[1753567340002,4.111,3760.7,3760.4,0.814]
[1753567340310,0.1328,3760.5,3760.4,0.814]
[1753567340703,0.1328,3760.5,3760.4,1.6953]
[1753567342917,4.2408,3760.5,3760.4,1.6953]
[1753567343520,0.1328,3760.5,3760.4,1.6953]
[1753567343722,4.2408,3760.5,3760.4,1.6953]
[1753567345386,4.2408,3760.5,3760.4,0.814]
[1753567345585,4.2408,3760.5,3760.1,0.7829]
[1753567345938,4.108,3760.5,3759.7,0.7647]
[1753567346238,4.108,3760.5,3759.6,0.001]
[1753567346239,2.65973167,3759.8,3759.6,0.001]
[1753567346518,10.73208668,3759.7,3759.6,0.001]
[1753567346698,11.0264852,3759.7,3759.6,0.001]
[1753567349421,11.5031852,3759.7,3759.6,0.001]
[1753567349724,11.9551852,3759.7,3759.6,0.001]
[1753567350121,11.0264852,3759.7,3759.6,0.001]
[1753567353014,2.79258668,3759.7,3759.6,0.001]
[1753567353211,6.387,3760.0,3759.6,0.8823]
[1753567353516,4.109,3759.9,3759.8,3.49211594]
[1753567353728,0.1328,3760.5,3760.2,2.65942877]
[1753567353925,4.109,3760.4,3760.2,2.65942877]
[1753567354232,4.109,3760.4,3760.3,0.8813]
[1753567355791,4.109,3760.4,3760.3,0.4501]
[1753567356194,4.109,3760.4,3760.3,0.8813]
[1753567358644,0.1328,3760.5,3760.3,0.8813]
[1753567358938,0.1328,3760.5,3760.0,2.79236693]
[1753567358939,4.109,3760.4,3760.0,2.79236693]
[1753567359295,4.109,3760.4,3759.8,0.8324]
[1753567359500,0.1328,3760.1,3759.9,0.4501]
[1753567359734,6.76857692,3760.0,3759.6,0.001]
[1753567360034,2.65978668,3759.7,3759.6,0.001]
[1753567360240,6.90158668,3759.7,3759.6,0.001]
[1753567362131,4.2418,3759.7,3759.6,0.001]
[1753567362322,4.109,3759.7,3759.6,3.56465743]
[1753567362538,4.109,3759.7,3759.6,4.32002185]
[1753567362726,0.1328,3760.1,3759.7,2.65975956]
[1753567363064,4.35744901,3760.0,3759.7,0.9038]
[1753567363260,0.24844901,3759.9,3759.8,0.9038]
[1753567363962,4.35744901,3759.9,3759.8,0.9038]
[1753567365954,0.24844901,3759.9,3759.8,3.56351594]
[1753567366118,4.35744901,3759.9,3759.8,3.56351594]
[1753567366533,4.35744901,3759.9,3759.8,0.9038]
[1753567367057,4.35760487,3759.9,3759.8,3.56351594]
[1753567367624,4.35760487,3759.9,3759.8,0.9038]
[1753567368261,4.109,3759.9,3759.8,0.9038]
[1753567370457,4.109,3759.9,3759.8,3.56351594]
[1753567371186,0.002,3760.4,3760.3,2.65936228]
[1753567371525,4.11,3760.4,3760.3,2.65936228]
[1753567371739,4.11,3760.4,3760.3,3.56316228]
[1753567372123,4.11,3760.4,3759.3,0.001]
[1753567372322,0.7931,3757.9,3756.9,3.84344458]
[1753567372557,30.0,3757.3,3756.8,0.001]
[1753567372863,3.0,3757.1,3756.8,0.001]
[1753567373064,7.57733371,3757.0,3756.8,0.001]
[1753567373270,2.66176901,3756.9,3756.8,0.001]
[1753567373471,32.66191071,3756.7,3755.2,0.4354]
[1753567373626,36.11642419,3756.7,3754.6,0.7556]
[1753567373957,2.66228687,3756.2,3754.7,0.4354]
[1753567374145,0.60362353,3756.1,3754.7,0.60134]
[1753567374349,4.65246918,3756.0,3754.9,2.66318676]
[1753567374535,0.45446918,3755.9,3755.0,2.66311584]
[1753567374740,4.44755477,3755.8,3755.1,0.4354]
[1753567374956,0.24855477,3755.7,3755.0,0.4684]
[1753567375137,0.69331025,3755.6,3754.8,2.66325092]
[1753567375363,4.44855477,3755.5,3754.6,1.191]
[1753567375523,0.24855477,3755.4,3755.3,2.66290309]
[1753567375727,0.24855477,3755.4,3755.3,3.56670309]
[1753567375946,0.24855477,3755.4,3755.3,0.9038]
[1753567376168,0.24855477,3755.4,3754.6,0.7556]
[1753567376169,0.24855477,3755.4,3754.7,0.4354]
[1753567376336,4.45255477,3755.3,3754.7,0.4354]
[1753567376536,4.45255477,3755.3,3754.0,0.05714]
[1753567376537,3.24855477,3755.2,3754.2,2.663653]
[1753567376850,0.70345477,3755.1,3754.0,0.86494]
[1753567377027,7.06485548,3755.4,3754.0,0.86494]
[1753567377028,0.24855477,3755.0,3754.0,0.05714]
[1753567377232,4.45255477,3754.9,3754.1,0.4354]
[1753567377433,4.204,3754.9,3754.2,0.31829337]
[1753567377730,4.204,3754.9,3754.0,0.05714]
[1753567378241,4.207,3754.8,3754.1,0.4684]
[1753567378447,4.207,3754.7,3754.1,2.66375274]
[1753567378631,4.211,3754.6,3754.2,2.66368218]
[1753567378831,3.0,3754.5,3754.0,0.05714]
[1753567379058,0.7211,3754.4,3754.0,0.05714]
[1753567379465,4.211,3754.6,3754.0,0.05714]
[1753567379636,4.21,3754.5,3754.1,3.09915429]
[1753567379838,4.21,3754.5,3754.0,0.05714]
[1753567379839,3.0,3755.3,3754.2,0.4354]
[1753567380055,7.67738543,3755.4,3754.8,2.66325082]
[1753567380056,4.209,3755.2,3754.8,2.66325082]
[1753567380367,4.209,3755.2,3754.2,0.9038]
[1753567380534,4.209,3755.2,3754.9,2.66317693]
[1753567380728,4.209,3755.2,3754.7,2.66327144]
[1753567380940,4.21,3755.1,3754.8,2.66324282]
[1753567381133,4.21,3755.1,3754.6,2.66333203]
[1753567381345,4.21,3755.1,3754.7,2.66330297]
[1753567381541,1.28638543,3755.4,3754.8,1.2935]
[1753567381744,1.28638543,3755.4,3755.3,2.66290309]
[1753567381953,1.28638543,3755.4,3755.3,3.56670309]
[1753567382179,1e-08,3755.4,3755.3,7.39180309]
[1753567382477,1e-08,3755.4,3755.3,8.5327466]
[1753567383041,1e-08,3755.4,3755.3,5.5327466]
[1753567383242,1e-08,3755.4,3755.3,4.05620309]
[1753567383780,1.54208688,3759.1,3755.3,4.05620309]
[1753567383781,0.7935,3757.6,3756.4,2.6621233]
[1753567383985,0.7935,3757.6,3756.2,2.66222083]
[1753567383986,0.1328,3756.7,3756.2,0.1328]
[1753567384157,0.1328,3756.7,3756.5,2.66198442]
[1753567384360,0.7935,3757.6,3757.3,2.6614747]
[1753567384559,0.367,3758.5,3756.6,3.09738157]
[1753567384560,4.3428,3757.3,3756.6,1.0366]
[1753567384883,0.1328,3757.1,3756.5,0.5682]
[1753567385086,0.7935,3757.9,3756.6,0.64818981]
[1753567385382,0.1328,3757.5,3757.4,2.6614148]
[1753567385562,4.3438,3757.5,3757.0,2.79446207]
[1753567385759,4.211,3757.5,3756.7,0.4354]
[1753567385949,4.211,3757.5,3756.6,0.18617]
[1753567385950,4.6321,3757.5,3756.4,3.48722296]
[1753567386152,0.1328,3757.1,3756.6,0.1328]
[1753567386491,0.1328,3757.1,3756.7,2.66185296]
[1753567386690,0.1328,3757.1,3756.8,2.66182694]
[1753567386885,0.1328,3757.1,3756.7,2.66190317]
[1753567387087,3.45421637,3758.4,3756.8,0.9038]
[1753567387388,0.1328,3757.5,3757.0,0.1328]
[1753567387567,4.209,3757.4,3757.1,0.4354]
[1753567387970,4.209,3757.4,3757.2,2.66155048]
[1753567388553,4.209,3757.4,3756.6,0.001]
[1753567388855,4.208,3757.3,3756.9,0.1328]
[1753567389060,4.208,3757.2,3757.1,2.66162731]
[1753567389258,0.1328,3758.3,3757.4,2.6614148]
[1753567389477,4.21,3758.1,3757.5,0.4354]
[1753567389675,4.21,3758.1,3757.8,2.79391517]
[1753567389676,0.22965778,3758.0,3757.8,2.79391517]
[1753567389883,0.22965778,3758.0,3757.8,0.1328]
[1753567390968,4.43765778,3758.0,3757.9,3.09646069]
[1753567391167,4.43765778,3758.0,3757.9,0.9038]
[1753567391387,4.43765778,3758.0,3757.9,3.56486069]
[1753567392101,4.208,3758.0,3757.9,3.56486069]
[1753567392415,4.208,3758.0,3757.9,0.9038]
[1753567392569,4.208,3758.0,3757.8,0.1328]
[1753567392772,0.1328,3758.5,3758.4,2.66070668]
[1753567393077,0.8055,3759.5,3758.6,2.66050343]
[1753567393078,4.204,3758.7,3758.6,2.66050343]
[1753567393279,4.204,3758.7,3758.6,3.13450343]
[1753567393586,4.204,3758.7,3758.6,0.6068]
[1753567393786,4.204,3758.7,3758.6,0.1328]
[1753567394294,4.204,3758.7,3757.9,0.4962]
[1753567394295,6.99729754,3758.7,3757.9,3.94843735]
[1753567394619,6.99729754,3758.7,3756.4,4.205]
[1753567394620,0.9383,3758.5,3757.4,0.7912]
[1753567394825,0.1328,3758.2,3757.7,0.1328]
[1753567394974,4.204,3758.1,3757.7,0.1328]
[1753567395811,4.204,3758.1,3757.4,0.924]
[1753567396019,0.1328,3757.9,3757.4,0.924]
[1753567396172,0.23022063,3757.8,3757.4,0.924]
[1753567396370,0.23022063,3757.7,3757.4,0.924]
[1753567396612,4.43222063,3757.6,3757.4,0.924]
[1753567396824,0.23022063,3757.5,3757.4,0.924]
[1753567397037,0.23022063,3757.5,3757.4,1.398]
[1753567397177,0.23022063,3757.5,3757.4,4.96155675]
[1753567398514,0.23022063,3757.5,3757.4,3.5854148]
[1753567398833,0.23022063,3757.5,3756.9,0.8116]